bitfinex/quotes_SOLUSD_20250522
["timestamp","ask_amount","ask_price","bid_price","bid_amount"]
[1747938854990,18.64964886,179.38,179.31,37.8804]
[1747938854991,5.57506829,179.37,179.35,15.36385729]
[1747938857775,19.51130006,179.39,179.35,15.36385729]
[1747938859084,19.51130006,179.39,179.36,15.36385729]
[1747938859776,5.57382531,179.41,179.38,15.36385729]
[1747938860277,2.08132774,179.4,179.39,15.36385729]
[1747938860682,2.08132774,179.4,179.32,33.42]
[1747938860882,2.08132774,179.4,179.39,15.36385729]
[1747938861083,7.65546374,179.4,179.39,15.36385729]
[1747938862585,19.50789353,179.42,179.39,15.36385729]
[1747938863905,2.08194817,179.41,179.39,15.36385729]
[1747938864427,2.08194817,179.41,179.4,15.36385729]
[1747938864705,19.50789353,179.42,179.4,15.36385729]
[1747938864880,19.50789353,179.42,179.39,15.36385729]
[1747938869410,34.87175082,179.42,179.37,15.36385729]
[1747938869899,19.50789353,179.42,179.37,15.36385729]
[1747938870083,2.0821976,179.41,179.37,15.36385729]
[1747938870507,5.574136,179.4,179.37,15.36385729]
[1747938870901,5.574136,179.4,179.39,15.36385729]
[1747938871092,19.50947602,179.4,179.31,37.8804]
[1747938871298,15.36385729,179.38,179.31,36.22]
[1747938871509,34.01350615,179.37,179.32,15.36385729]
[1747938871713,34.15566772,179.39,179.33,15.36385729]
[1747938871894,19.50947602,179.4,179.36,15.36385729]
[1747938872090,2.08214495,179.39,179.37,15.36385729]
[1747938872828,5.57475749,179.38,179.37,15.36385729]
[1747938873919,136.0,179.42,179.37,15.36385729]
[1747938874095,18.64964886,179.41,179.37,15.36385729]
[1747938874792,18.64964886,179.41,179.38,15.36385729]
[1747938874793,2.08203979,179.4,179.38,15.36385729]
[1747938876423,19.50730129,179.42,179.37,15.36385729]
[1747938876793,2.08229582,179.41,179.37,15.36385729]
[1747938877925,2.08229582,179.4,179.37,15.36385729]
[1747938878307,5.57444673,179.39,179.37,15.36385729]
[1747938879733,38.15803746,179.41,179.34,36.1]
[1747938879916,18.64964886,179.39,179.34,51.46385729]
[1747938880426,18.64964886,179.39,179.35,15.36385729]
[1747938880735,2.08268372,179.38,179.35,15.36385729]
[1747938880916,2.08268372,179.38,179.36,15.36385729]
[1747938881435,2.08268372,179.38,179.37,15.36385729]
[1747938881613,2.08268372,179.4,179.37,15.36385729]
[1747938882030,5.57444673,179.39,179.37,15.36385729]
[1747938882232,5.57444673,179.39,179.36,15.36385729]
[1747938883037,19.50947602,179.4,179.36,15.36385729]
[1747938883620,5.574136,179.4,179.37,15.36385729]
[1747938883919,2.08270298,179.39,179.37,15.36385729]
[1747938884434,5.573907,179.41,179.38,15.36385729]
[1747938884637,5.573907,179.41,179.39,15.36385729]
[1747938885048,19.50652138,179.43,179.39,15.36385729]
[1747938885211,2.08252869,179.42,179.39,15.36385729]
[1747938885712,5.57320403,179.43,179.4,15.36385729]
[1747938885906,5.57320403,179.43,179.41,15.36385729]
[1747938886741,31.57320403,179.43,179.41,15.36385729]
[1747938887433,2.08276806,179.42,179.41,15.36385729]
[1747938887857,2.08276806,179.42,179.4,15.36385729]
[1747938888443,7.65638335,179.42,179.41,15.36385729]
[1747938888739,2.08276806,179.42,179.41,15.36385729]
[1747938888953,1.1134886,179.44,179.41,15.36385729]
[1747938889157,6.68640646,179.44,179.43,15.36385729]
[1747938892368,5.5700997,179.53,179.43,54.35706132]
[1747938892660,5.5700997,179.53,179.52,15.36385729]
[1747938893038,9.5686591,179.54,179.52,15.36385729]
[1747938893363,9.5686591,179.54,179.53,15.36385729]
[1747938894173,9.5686591,179.54,179.51,15.36385729]
[1747938894370,5.56981481,179.54,179.51,15.36385729]
[1747938895684,5.56981481,179.54,179.52,15.36385729]
[1747938896464,24.21881793,179.56,179.52,15.36385729]
[1747938896670,38.14174062,179.56,179.52,15.36385729]
[1747938899260,24.21881793,179.56,179.52,15.36385729]
[1747938900558,24.21881793,179.56,179.47,59.42]
[1747938900559,53.50559791,179.56,179.5,15.36385729]
[1747938900891,15.50601886,179.55,179.49,15.36385729]
[1747938901051,15.50601886,179.55,179.47,59.42]
[1747938901052,34.01350615,179.53,179.47,15.36385729]
[1747938901585,34.01350615,179.53,179.48,15.36385729]
[1747938901749,15.36385729,179.51,179.46,36.08]
[1747938902573,5.57103064,179.5,179.46,36.08]
[1747938902754,5.57103064,179.5,179.46,51.44385729]
[1747938903277,5.57040998,179.52,179.46,36.08]
[1747938905778,15.34658914,179.51,179.46,36.08]
[1747938906679,5.57103064,179.5,179.46,36.08]
[1747938907680,15.34658914,179.5,179.46,36.08]
[1747938907985,5.56947925,179.55,179.49,26.0]
[1747938908276,15.34658914,179.52,179.49,26.0]
[1747938908891,18.64964886,179.56,179.49,26.0]
[1747938909088,15.34658914,179.53,179.46,62.08]
[1747938909791,15.34658914,179.53,179.47,5.57173324]
[1747938910197,20.9168832,179.53,179.47,5.57173324]
[1747938910978,15.34658914,179.54,179.47,5.57173324]
[1747938911490,20.91638694,179.54,179.47,5.57173324]
[1747938911690,15.34658914,179.55,179.47,5.57173324]
[1747938911895,15.34658914,179.54,179.47,5.57173324]
[1747938912279,20.91657622,179.54,179.47,5.57173324]
[1747938914095,20.91657622,179.54,179.5,26.0]
[1747938915895,15.34658914,179.53,179.5,26.0]
[1747938916095,5.57103064,179.5,179.43,36.16]
[1747938916394,15.34658914,179.44,179.43,36.16]
[1747938916594,33.996238,179.44,179.38,36.16]
[1747938916799,15.34658914,179.39,179.38,36.16]
[1747938918097,20.92103587,179.39,179.38,36.16]
[1747938918798,18.64964886,179.38,179.37,7.95341141]
[1747938918980,33.996238,179.38,179.33,36.16]
[1747938919180,15.34658914,179.34,179.33,36.16]
[1747938920301,20.92259003,179.34,179.33,36.16]
[1747938921001,15.34658914,179.34,179.33,36.16]
[1747938923909,1.5421,179.41,179.33,36.16]
[1747938924091,15.34658914,179.37,179.34,26.0]
[1747938924987,15.34658914,179.38,179.36,26.0]
[1747938925504,15.34658914,179.38,179.33,69.58]
[1747938925694,15.34658914,179.37,179.33,69.58]
[1747938925902,42.26756978,179.45,179.33,75.15608024]
[1747938926097,15.34658914,179.39,179.33,75.15608024]
[1747938926692,15.34658914,179.4,179.33,101.15608024]
[1747938927011,15.34658914,179.41,179.33,101.15608024]
[1747938927713,15.34658914,179.4,179.33,101.15608024]
[1747938928514,20.92051031,179.41,179.36,26.0]
[1747938929010,15.34658914,179.4,179.36,26.0]
[1747938929210,15.34658914,179.41,179.36,26.0]
[1747938930313,20.92066458,179.41,179.36,26.0]
[1747938930714,58.45189635,179.55,179.36,31.57537183]
[1747938930715,13.92952156,179.48,179.36,31.57537183]
[1747938930930,15.34658914,179.43,179.36,31.57537183]
[1747938931107,15.34658914,179.44,179.36,31.57537183]
[1747938932206,15.34658914,179.42,179.38,26.0]
[1747938932410,5.57382531,179.41,179.39,69.7]
[1747938933516,15.34658914,179.44,179.39,69.7]
[1747938933721,20.91951201,179.44,179.39,69.7]
[1747938934216,15.34658914,179.44,179.39,69.7]
[1747938934394,20.91920551,179.45,179.39,69.7]
[1747938934821,20.91920551,179.45,179.39,75.27439081]
[1747938934822,5.57261637,179.45,179.39,75.27439081]
[1747938935425,5.57261637,179.45,179.39,69.7]
[1747938935725,20.91920551,179.45,179.39,69.7]
[1747938935926,15.34658914,179.44,179.39,69.7]
[1747938936414,5.57320403,179.43,179.39,69.7]
[1747938940830,5.57289344,179.44,179.39,69.7]
[1747938947849,5.57196188,179.47,179.42,26.0]
[1747938948031,20.91855102,179.47,179.42,26.0]
[1747938949667,5.57196188,179.47,179.42,26.0]
[1747938949829,20.91855102,179.47,179.42,26.0]
[1747938951863,5.57196188,179.47,179.42,26.0]
[1747938952150,20.91855102,179.47,179.42,26.0]
[1747938953157,5.57196188,179.47,179.42,26.0]
[1747938953334,5.57134102,179.49,179.42,31.57345821]
[1747938953850,5.57134102,179.49,179.43,33.4]
[1747938955662,20.91761978,179.5,179.43,33.4]
[1747938956966,15.34658914,179.47,179.43,33.4]
[1747938959255,5.57165143,179.48,179.43,33.4]
[1747938959461,20.91824057,179.48,179.43,33.4]
[1747938959866,20.91824057,179.48,179.42,35.98]
[1747938960579,18.64964886,179.5,179.42,41.55334725]
[1747938960978,20.91730943,179.51,179.45,26.0]
[1747938961490,2.07539756,179.5,179.45,26.0]
[1747938962266,5.57072029,179.51,179.45,26.0]
[1747938963681,5.5700997,179.53,179.47,26.0]
[1747938963874,20.91668884,179.53,179.48,35.98]
[1747938964384,5.5700997,179.53,179.48,35.98]
[1747938964765,5.5700997,179.53,179.48,69.38]
[1747938965885,33.996238,179.55,179.48,69.38]
[1747938965886,24.21943832,179.54,179.48,69.38]
[1747938966389,5.56978946,179.54,179.48,74.95164571]
[1747938966571,5.56978946,179.54,179.51,26.0]
[1747938967273,5.56916907,179.56,179.51,26.0]
[1747938968191,24.21819769,179.58,179.51,26.0]
[1747938969607,39.56478683,179.58,179.51,26.0]
[1747938969788,24.21819769,179.58,179.53,26.0]
[1747938970782,5.56854883,179.58,179.53,26.0]
[1747938971703,5.56854883,179.58,179.54,35.96]
[1747938972402,5.56823876,179.59,179.54,35.96]
[1747938973300,5.56699883,179.63,179.57,26.0]
[1747938974179,5.56699883,179.63,179.59,26.0]
[1747938974480,53.47964926,179.64,179.59,26.0]
[1747938974701,15.34658914,179.62,179.57,26.0]
[1747938975392,33.996238,179.63,179.57,26.0]
[1747938976721,19.48558066,179.62,179.57,26.0]
[1747938977014,15.34658914,179.6,179.52,1.5887]
[1747938977205,15.34658914,179.6,179.55,35.96]
[1747938977592,15.34658914,179.6,179.54,35.96]
[1747938977593,15.34658914,179.57,179.54,35.96]
[1747938978217,15.34658914,179.58,179.52,35.96]
[1747938978393,15.34658914,179.57,179.53,26.0]
[1747938978895,5.56916907,179.56,179.53,26.0]
[1747938981219,5.56916907,179.56,179.52,35.96]
[1747938983301,5.56885894,179.57,179.52,35.96]
[1747938985602,34.83759543,179.57,179.52,35.96]
[1747938985838,19.49100629,179.57,179.52,35.96]
[1747938986815,5.56885894,179.57,179.52,35.96]
[1747938987216,5.56823876,179.59,179.52,67.5303138]
[1747938987736,5.56792873,179.6,179.55,26.0]
[1747938987934,5.56792873,179.6,179.55,59.38]
[1747938988137,5.56668893,179.64,179.55,59.38]
[1747938988450,5.56668893,179.64,179.55,61.0454]
[1747938988736,5.56544968,179.68,179.56,0.14216157]
[1747938988935,18.64964886,179.67,179.56,0.14216157]
[1747938989134,5.56544968,179.68,179.56,0.28432314]
[1747938989518,19.4790739,179.68,179.6,26.0]
[1747938989717,19.4790739,179.68,179.61,69.16]
[1747938993045,19.4790739,179.68,179.61,95.16]
[1747938994019,33.996238,179.67,179.61,95.16]
[1747938994535,33.996238,179.67,179.61,61.78]
[1747938995021,15.34658914,179.65,179.61,35.78]
[1747938996027,5.56668893,179.64,179.61,35.78]
[1747938997352,20.91296821,179.65,179.61,35.78]
[1747938997554,5.56637907,179.65,179.61,35.78]
[1747938999244,24.21509854,179.68,179.61,35.78]
[1747939000447,5.56544968,179.68,179.61,35.78]
[1747939001070,5.56544968,179.68,179.61,41.3475542]
[1747939001551,5.56544968,179.68,179.61,35.78]
[1747939002554,5.56544968,179.68,179.61,67.34758572]
[1747939003355,5.56544968,179.68,179.61,61.78]
[1747939004552,18.64964886,179.68,179.61,35.78]
[1747939004758,15.34658914,179.66,179.61,35.78]
[1747939004963,15.34658914,179.65,179.61,35.78]
[1747939005454,15.34658914,179.66,179.61,35.78]
[1747939005833,15.34658914,179.62,179.52,6.2372]
[1747939006145,15.34658914,179.61,179.59,35.78]
[1747939006448,18.64964886,179.61,179.59,35.78]
[1747939006654,5.56730876,179.62,179.59,35.78]
[1747939007232,15.34658914,179.6,179.57,35.78]
[1747939007640,19.48558066,179.62,179.57,35.78]
[1747939007847,20.9138979,179.62,179.57,35.78]
[1747939008258,34.8321698,179.62,179.57,35.78]
[1747939009159,19.48558066,179.62,179.57,35.78]
[1747939009560,5.56730876,179.62,179.57,35.78]
[1747939009738,5.56730876,179.62,179.58,59.36]
[1747939010644,15.34658914,179.66,179.58,59.36]
[1747939011160,5.56606924,179.66,179.58,59.36]
[1747939011341,18.64964886,179.65,179.58,59.36]
[1747939011660,18.64964886,179.63,179.58,59.36]
[1747939012138,18.79181043,179.65,179.58,59.36]
[1747939012338,34.13839957,179.65,179.58,59.36]
[1747939012553,18.64964886,179.64,179.58,59.36]
[1747939012953,18.64964886,179.64,179.59,35.78]
[1747939013365,5.56699883,179.63,179.59,35.78]
[1747939015565,5.56668893,179.64,179.59,35.78]
[1747939018664,5.56575944,179.67,179.59,35.78]
[1747939018849,24.2154083,179.67,179.59,35.78]
[1747939019051,38.12980691,179.67,179.59,35.78]
[1747939019863,18.64964886,179.66,179.59,35.78]
[1747939020054,33.996238,179.66,179.59,35.78]
[1747939020741,15.34658914,179.65,179.59,35.78]
[1747939021777,5.56668893,179.64,179.59,35.78]
[1747939022379,5.56575944,179.67,179.62,26.0]
[1747939023269,5.56575944,179.67,179.62,59.38]
[1747939023875,5.56544968,179.68,179.62,59.38]
[1747939025885,5.56606924,179.66,179.62,33.38]
[1747939026055,5.56606924,179.66,179.59,35.78]
[1747939026056,33.996238,179.65,179.6,26.0]
[1747939026568,33.996238,179.65,179.59,69.16]
[1747939026758,20.91265838,179.66,179.59,69.16]
[1747939026960,5.56606924,179.66,179.59,95.16]
[1747939029165,20.91265838,179.66,179.59,95.16]
[1747939030385,5.56606924,179.66,179.59,95.16]
[1747939030885,5.56606924,179.66,179.59,100.72818084]
[1747939033158,24.21509854,179.68,179.59,100.72818084]
[1747939033487,39.56168768,179.68,179.59,100.72818084]
[1747939033705,24.21509854,179.68,179.59,100.72818084]
[1747939033876,39.56168768,179.68,179.59,100.72818084]
[1747939034192,39.56168768,179.68,179.62,26.0]
[1747939036469,5.56544968,179.68,179.62,31.56725807]
[1747939036673,5.56544968,179.68,179.63,35.74]
[1747939039599,24.21509854,179.68,179.63,35.74]
[1747939041489,24.21509854,179.68,179.62,26.0]
[1747939041490,5.56606924,179.66,179.62,26.0]
[1747939043883,24.2154083,179.67,179.62,26.0]
[1747939049292,15.48875071,179.66,179.61,35.72]
[1747939049601,18.64964886,179.64,179.61,35.72]
[1747939050418,15.34658914,179.64,179.61,35.72]
[1747939050994,18.64964886,179.62,179.61,35.72]
[1747939051197,5.56761872,179.61,179.56,35.72]
[1747939052608,5.56699883,179.63,179.56,41.28904703]
[1747939052827,5.56699883,179.63,179.59,26.0]
[1747939053420,5.56668893,179.64,179.59,26.0]
[1747939055339,5.56637907,179.65,179.59,26.0]
[1747939055622,24.21602793,179.65,179.59,26.0]
[1747939055813,53.47856474,179.65,179.59,26.0]
[1747939056011,15.34658914,179.64,179.59,26.0]
[1747939057614,5.56699883,179.63,179.59,26.0]
[1747939058921,5.56668893,179.64,179.59,26.0]
[1747939062938,18.64964886,179.6,179.56,35.72]
[1747939063142,33.996238,179.6,179.56,35.72]
[1747939063614,33.996238,179.61,179.56,35.72]
[1747939063817,0.14216157,179.6,179.56,35.72]
[1747939064018,18.64964886,179.61,179.56,35.72]
[1747939064851,5.56792873,179.6,179.56,35.72]
[1747939065260,5.56730876,179.62,179.56,35.72]
[1747939067129,5.56637907,179.65,179.59,26.0]
[1747939068243,5.56637907,179.65,179.56,42.82930855]
[1747939068244,5.56637907,179.65,179.6,26.0]
[1747939070255,19.48232674,179.65,179.6,26.0]
[1747939071054,18.64964886,179.64,179.6,26.0]
[1747939071355,18.64964886,179.64,179.59,35.74]
[1747939071356,33.996238,179.64,179.59,35.74]
[1747939071652,18.64964886,179.64,179.59,35.74]
[1747939073833,5.56699883,179.63,179.59,35.74]
[1747939075570,5.56606924,179.66,179.59,35.74]
[1747939075874,5.56668893,179.64,179.59,61.74]
[1747939076565,5.56668893,179.64,179.59,67.30820553]
[1747939076944,137.5034,179.67,179.59,67.30820553]
[1747939077151,5.56628733,179.66,179.62,26.0]
[1747939081376,5.56628733,179.66,179.62,26.0]
[1747939081674,5.56544968,179.68,179.62,26.0]
[1747939082375,2.07902352,179.67,179.62,26.0]
[1747939082773,5.56606924,179.66,179.62,26.0]
[1747939083373,5.56567079,179.68,179.62,31.56729262]
[1747939084387,5.56513996,179.69,179.62,31.56729262]
[1747939085097,5.56421099,179.72,179.62,31.56729262]
[1747939085264,1.5388,179.75,179.63,1.64926157]
[1747939085463,3.99884429,179.76,179.67,26.0]
[1747939085758,3.99884429,179.76,179.71,26.0]
[1747939085966,18.64964886,179.76,179.71,26.0]
[1747939086783,18.64964886,179.78,179.71,5.56448224]
[1747939086969,18.64964886,179.78,179.72,26.0]
[1747939088281,14.29088008,179.79,179.72,26.0]
[1747939088858,14.29088008,179.79,179.72,31.56407016]
[1747939089787,14.29088008,179.79,179.72,26.0]
[1747939090294,14.29088008,179.79,179.73,26.0]
[1747939090597,14.29088008,179.79,179.74,35.7]
[1747939090893,28.19599159,179.79,179.74,35.7]
[1747939091796,19.46734367,179.79,179.74,35.7]
[1747939093286,18.64964886,179.78,179.74,35.7]
[1747939093483,18.64964886,179.76,179.74,35.7]
[1747939094497,33.996238,179.78,179.74,35.7]
[1747939094896,33.996238,179.78,179.7,26.0]
[1747939095197,5.5626634,179.77,179.71,35.7]
[1747939095890,5.5626634,179.77,179.74,26.0]
[1747939097181,5.56235398,179.78,179.74,26.0]
[1747939100312,5.56235398,179.78,179.74,59.36]
[1747939100781,5.56210946,179.79,179.74,59.36]
[1747939100987,5.56120437,179.82,179.74,64.9234431]
[1747939102093,5.56080742,179.83,179.74,64.9234431]
[1747939102816,19.46282599,179.83,179.74,59.36]
[1747939103324,18.64964886,179.82,179.74,59.36]
[1747939103822,15.48875071,179.81,179.75,95.02]
[1747939104126,18.64964886,179.79,179.75,95.02]
[1747939104490,18.64964886,179.79,179.75,61.68]
[1747939105111,33.996238,179.79,179.75,61.68]
[1747939105295,33.996238,179.79,179.75,35.68]
[1747939105693,5.56173526,179.8,179.75,35.68]
[1747939107527,18.64964886,179.79,179.75,35.68]
[1747939108204,5.56235398,179.78,179.75,35.68]
[1747939109429,5.56235398,179.78,179.68,6.4838]
[1747939109430,18.64964886,179.77,179.68,6.4838]
[1747939109629,33.996238,179.77,179.68,6.4838]
[1747939109911,33.996238,179.77,179.67,1.6287]
[1747939109912,35.552438,179.77,179.7,26.0]
[1747939110309,18.64964886,179.75,179.7,26.0]
[1747939110689,18.64964886,179.75,179.69,69.0]
[1747939110690,18.64964886,179.75,179.69,35.66]
[1747939110913,33.996238,179.75,179.69,35.66]
[1747939111298,15.48875071,179.74,179.69,35.66]
[1747939112437,18.64964886,179.72,179.66,208.06]
[1747939112727,18.64964886,179.72,179.67,61.66]
[1747939114109,18.64964886,179.72,179.67,26.0]
[1747939114314,18.64964886,179.72,179.67,61.68]
[1747939114536,18.64964886,179.7,179.67,61.68]
[1747939115241,5.56452061,179.71,179.67,61.68]
[1747939115626,24.21355026,179.73,179.67,61.68]
[1747939115832,5.5639014,179.73,179.67,61.68]
[1747939116628,5.56359185,179.74,179.67,61.68]
[1747939118235,5.56359185,179.74,179.68,33.36]
[1747939120627,18.64964886,179.73,179.68,33.36]
[1747939122449,5.56421099,179.72,179.68,33.36]
[1747939124750,18.64964886,179.73,179.68,33.36]
[1747939125049,18.64964886,179.73,179.67,61.68]
[1747939125050,33.996238,179.73,179.67,61.68]
[1747939125436,18.64964886,179.73,179.67,61.68]
[1747939126744,5.56421099,179.72,179.67,61.68]
[1747939127440,18.64964886,179.71,179.67,61.68]
[1747939128853,5.56483027,179.7,179.67,61.68]
[1747939131156,5.56483027,179.7,179.67,35.68]
[1747939133265,5.56421099,179.72,179.67,35.68]
[1747939134059,19.47473847,179.72,179.67,35.68]
[1747939134966,18.64964886,179.71,179.67,35.68]
[1747939135873,5.56483027,179.7,179.67,35.68]
[1747939143385,5.56421099,179.72,179.67,35.68]
[1747939146178,18.64964886,179.71,179.67,35.68]
[1747939147075,5.56421099,179.72,179.67,35.68]
[1747939148687,18.64964886,179.71,179.67,35.68]
[1747939149883,5.56421099,179.72,179.67,35.68]
[1747939150469,5.5639014,179.73,179.67,35.68]
[1747939151663,5.5639014,179.73,179.67,41.24572147]
[1747939151881,5.5639014,179.73,179.68,26.0]
[1747939155973,5.56328233,179.75,179.68,64.9254422]
[1747939156183,5.56328233,179.75,179.69,26.0]
[1747939156994,5.56328233,179.75,179.71,26.0]
[1747939157484,19.47148817,179.75,179.71,26.0]
[1747939158094,2.08079925,179.74,179.71,26.0]
[1747939158599,5.56328233,179.75,179.71,26.0]
[1747939159597,5.56328233,179.75,179.68,59.36]
[1747939159795,19.47148817,179.75,179.68,59.36]
[1747939164599,19.47148817,179.75,179.68,64.92541587]
[1747939166010,19.47148817,179.75,179.71,26.0]
[1747939166914,5.56328233,179.75,179.71,26.0]
[1747939167720,5.56328233,179.75,179.72,35.66]
[1747939168221,5.5626634,179.77,179.72,69.02]
[1747939168924,5.5620446,179.79,179.72,69.02]
[1747939169624,2.07853504,179.78,179.75,26.0]
[1747939169787,2.07853504,179.78,179.76,33.36]
[1747939170201,5.56182158,179.8,179.76,33.36]
[1747939170914,5.56142594,179.81,179.76,33.36]
[1747939171615,5.56142594,179.81,179.7,5.56483027]
[1747939171805,33.95486668,179.8,179.71,69.0]
[1747939172008,18.64964886,179.8,179.71,69.0]
[1747939172809,18.64964886,179.8,179.74,26.0]
[1747939173335,5.5620446,179.79,179.74,26.0]
[1747939173918,5.5620446,179.79,179.76,26.0]
[1747939174131,5.5620446,179.79,179.74,26.0]
[1747939175720,5.56142594,179.81,179.74,26.0]
[1747939179210,5.56142594,179.81,179.74,31.56351064]
[1747939179424,5.56142594,179.81,179.74,26.0]
[1747939180042,19.46499081,179.81,179.74,26.0]
[1747939180345,18.64964886,179.8,179.74,26.0]
[1747939181043,5.56173526,179.8,179.74,26.0]
[1747939181537,5.56152764,179.81,179.74,26.0]
[1747939182338,5.56152764,179.81,179.75,26.0]
[1747939182509,5.56152764,179.81,179.76,33.34]
[1747939182708,5.56119861,179.82,179.77,35.64]
[1747939183637,5.56080742,179.83,179.77,35.64]
[1747939183836,5.56080742,179.83,179.78,26.0]
[1747939185841,5.56018904,179.85,179.78,26.0]
[1747939187134,33.95486668,179.84,179.78,26.0]
[1747939188956,5.56080742,179.83,179.78,26.0]
[1747939189257,18.64964886,179.82,179.78,26.0]
[1747939189650,18.64964886,179.82,179.8,26.0]
[1747939190759,5.56080742,179.83,179.8,26.0]
[1747939190760,18.64964886,179.83,179.8,26.0]
[1747939191054,5.56049822,179.84,179.8,26.0]
[1747939193063,5.56018904,179.85,179.77,41.20257842]
[1747939195759,5.56018904,179.85,179.77,35.64]
[1747939196564,5.56018904,179.85,179.77,41.20260364]
[1747939196772,18.64964886,179.81,179.71,209.5296]
[1747939196975,18.64964886,179.81,179.76,35.62]
[1747939197181,9.78825374,179.82,179.76,35.62]
[1747939197376,18.64964886,179.83,179.76,35.62]
[1747939197693,5.56111667,179.82,179.77,33.34]
[1747939199774,19.46390835,179.82,179.77,33.34]
[1747939201478,18.64964886,179.81,179.76,35.62]
[1747939202571,5.56111667,179.82,179.76,35.62]
[1747939203170,5.56080742,179.83,179.76,35.62]
[1747939203375,5.56080742,179.83,179.77,26.0]
[1747939203764,19.46282599,179.83,179.77,26.0]
[1747939204381,5.56080742,179.83,179.77,26.0]
[1747939205077,5.56080742,179.83,179.79,26.0]
[1747939205254,5.56049822,179.84,179.79,59.34]
[1747939206479,1.6396,179.86,179.79,59.34]
[1747939206480,18.64964886,179.86,179.79,64.90201347]
[1747939206684,18.64964886,179.86,179.8,35.6]
[1747939207688,5.56018904,179.85,179.8,35.6]
[1747939208068,24.20958218,179.86,179.8,41.16165224]
[1747939208273,18.64964886,179.87,179.8,41.16165224]
[1747939208598,5.55926173,179.88,179.83,26.0]
[1747939209689,18.64964886,179.87,179.8,35.6]
[1747939209884,33.94571602,179.87,179.81,35.6]
[1747939210387,18.64964886,179.87,179.81,35.6]
[1747939211010,5.5598799,179.86,179.81,35.6]
[1747939211698,5.5598799,179.86,179.79,31.56198014]
[1747939212000,5.5598799,179.86,179.8,68.94]
[1747939216389,5.5598799,179.86,179.79,31.56202658]
[1747939216590,5.5598799,179.86,179.81,26.0]
[1747939218009,5.5598799,179.86,179.82,61.6]
[1747939219013,5.5598799,179.86,179.8,26.0]
[1747939219215,5.5598799,179.86,179.81,35.6]
[1747939220012,18.64964886,179.85,179.81,35.6]
[1747939221010,5.56049822,179.84,179.81,35.6]
[1747939225515,18.64964886,179.83,179.81,35.6]
[1747939225700,33.94571602,179.83,179.72,221.49741754]
[1747939225901,33.94571602,179.83,179.77,35.6]
[1747939226601,18.64964886,179.81,179.77,35.6]
[1747939227719,5.56111667,179.82,179.77,35.6]
[1747939228145,5.56111667,179.82,179.77,68.94]
[1747939228450,5.56080452,179.84,179.77,74.50265038]
[1747939228655,5.56018904,179.85,179.77,74.50265038]
[1747939229256,33.94571602,179.84,179.76,27.646]
[1747939229418,33.94571602,179.84,179.78,35.6]
[1747939230140,33.94571602,179.84,179.74,26.0]
[1747939230329,18.64964886,179.84,179.78,35.6]
[1747939230533,33.94571602,179.84,179.78,35.6]
[1747939231032,19.46282599,179.83,179.78,35.6]
[1747939234959,13.90201857,179.83,179.78,35.6]
[1747939236627,24.21014708,179.84,179.78,35.6]
[1747939236832,18.64964886,179.84,179.78,35.6]
[1747939237926,5.56080742,179.83,179.78,35.6]
[1747939238128,5.56080742,179.83,179.78,61.6]
[1747939239253,18.64964886,179.82,179.78,35.6]
[1747939239956,5.56142594,179.81,179.78,35.6]
[1747939241055,19.46499081,179.81,179.76,35.6]
[1747939242247,18.64964886,179.8,179.76,35.6]
[1747939243870,0.14216157,179.79,179.76,35.6]
[1747939244229,18.64964886,179.77,179.76,35.6]
[1747939246443,24.21231226,179.77,179.76,35.6]
[1747939246639,38.11897076,179.77,179.71,61.6]
[1747939247640,38.11897076,179.77,179.71,35.6]
[1747939251358,0.14216157,179.76,179.71,35.6]
[1747939251763,38.11897076,179.77,179.71,35.6]
[1747939259160,0.14216157,179.76,179.71,35.6]
[1747939259465,18.64964886,179.74,179.71,35.6]
[1747939260339,0.14216157,179.73,179.71,35.6]
[1747939260542,0.14216157,179.73,179.66,35.6]
[1747939260966,0.14216157,179.73,179.66,61.6]